bitfinex-derivatives/quotes_ETHF0:USTF0_20250209
["timestamp","ask_amount","ask_price","bid_price","bid_amount"]
[1739130987952,4.68893651,2626.7,2626.5,0.0057205]
[1739130988157,0.5329,2626.7,2626.5,0.0057205]
[1739130988359,3.2078,2626.9,2626.5,0.0057205]
[1739130988360,4.06807981,2626.6,2626.5,0.0057205]
[1739130988758,3.74067,2626.9,2626.5,0.0057205]
[1739130989262,1.686,2626.8,2626.5,0.0057205]
[1739130989663,2.21889,2626.8,2626.5,0.0057205]
[1739130989963,3.9857671,2626.7,2626.5,0.0057205]
[1739130990469,0.53292,2626.6,2626.5,0.0057205]
[1739130991064,4.78183926,2626.6,2626.5,0.0057205]
[1739130994065,4.24891926,2626.6,2626.5,0.0057205]
[1739130994562,4.57298854,2626.7,2626.5,0.0057205]
[1739130994764,0.53291,2626.7,2626.5,0.0057205]
[1739130994965,4.04007854,2626.6,2626.5,0.0057205]
[1739130995263,4.57299854,2626.6,2626.5,0.0057205]
[1739130995461,4.04007854,2626.6,2626.5,0.0057205]
[1739130995665,4.57299854,2626.6,2626.5,0.0057205]
[1739130996770,7.78079854,2626.6,2626.5,0.0057205]
[1739130997062,7.31152146,2626.6,2625.9,3.2078]
[1739130997267,0.53301,2626.2,2625.9,3.2078]
[1739130997458,2.21901,2626.2,2625.9,3.2078]
[1739130998864,0.53303,2626.1,2625.9,3.2078]
[1739130999163,0.53303,2626.1,2625.8,0.0057205]
[1739130999968,1.686,2626.2,2625.8,0.0057205]
[1739131000871,2.21902,2626.2,2625.8,0.0057205]
[1739131002169,0.53305,2626.0,2625.8,0.0057205]
[1739131003271,0.53307,2625.9,2625.8,0.0057205]
[1739131003469,4.62527208,2625.9,2625.8,0.0057205]
[1739131009562,0.53311,2625.7,2625.3,3.2078]
[1739131009767,1.686,2625.6,2625.3,3.2078]
[1739131010068,0.53317,2625.4,2625.3,3.2078]
[1739131010272,0.53317,2625.4,2625.0,3.2078]
[1739131011174,0.5388805,2625.5,2625.0,3.2078]
[1739131011672,4.42107162,2625.4,2625.0,3.2078]
[1739131011972,4.42107162,2625.4,2624.9,0.0057205]
[1739131011973,0.0057205,2625.5,2625.3,6.32894395]
[1739131012271,0.0057205,2625.5,2625.3,3.2078]
[1739131012476,0.0057205,2625.5,2625.0,6.32894395]
[1739131018163,0.5388705,2625.5,2625.0,6.32894395]
[1739131018366,0.0057205,2625.5,2625.0,6.32894395]
[1739131020675,0.53319,2625.3,2625.0,3.2078]
[1739131020880,4.6594286,2625.4,2625.0,3.2078]
[1739131021776,4.1262486,2625.4,2625.0,3.2078]
[1739131022474,4.1262486,2625.4,2624.9,0.0057205]
[1739131022475,0.0057205,2625.5,2625.3,6.32894395]
[1739131025272,0.0057205,2625.5,2625.3,3.2078]
[1739131026178,0.0057205,2625.5,2625.0,6.32894395]
[1739131027474,4.12021433,2625.4,2625.0,6.32894395]
[1739131029979,0.0057205,2625.5,2625.3,6.32894395]
[1739131032783,0.0057205,2625.5,2625.4,0.57980115]
[1739131033981,0.0057205,2625.5,2625.3,6.32894395]
[1739131034975,0.0057205,2625.5,2625.4,0.57964814]
[1739131035982,0.0057205,2625.5,2625.3,6.32894395]
[1739131038380,0.0057205,2625.5,2625.4,0.57940546]
[1739131039987,0.0057205,2625.5,2625.3,6.32894395]
[1739131041088,0.0057205,2625.5,2625.4,0.5792474]
[1739131041781,0.0057205,2625.5,2625.3,6.32894395]
[1739131042887,0.0057205,2625.5,2625.4,0.57925628]
[1739131043682,0.0057205,2625.5,2625.3,6.32894395]
[1739131043884,0.0057205,2625.5,2625.3,3.12114395]
[1739131044086,0.0057205,2625.5,2625.4,3.2078]
[1739131048189,0.0057205,2625.5,2625.4,3.78719732]
[1739131050301,0.0057205,2625.5,2625.4,3.2078]
[1739131060907,0.0057205,2625.5,2625.4,3.78781795]
[1739131067305,6.1218,2626.9,2625.4,9.78781795]
[1739131067506,1.684,2626.8,2626.2,3.2078]
[1739131067806,5.75015276,2626.8,2626.2,3.2078]
[1739131068609,5.75587326,2626.8,2626.2,3.2135205]
[1739131071208,6.28876326,2626.8,2626.2,3.2135205]
[1739131071409,0.53291,2626.7,2626.2,3.2135205]
[1739131071807,4.26702518,2626.6,2626.2,3.2135205]
[1739131073612,4.79995518,2626.6,2626.2,3.2135205]
[1739131074113,4.79995518,2626.6,2626.2,0.0057205]
[1739131074509,4.26702518,2626.6,2626.2,0.0057205]
[1739131077310,0.0057205,2626.8,2626.2,3.2135205]
[1739131077505,1.684,2626.7,2626.2,3.2135205]
[1739131081518,4.51799146,2626.6,2626.2,3.2135205]
[1739131081706,3.98506146,2626.6,2626.2,3.2135205]
[1739131085221,3.98506146,2626.6,2626.2,0.0057205]
[1739131085624,4.51800146,2626.6,2626.2,0.0057205]
[1739131087816,3.98506146,2626.6,2626.2,0.0057205]
[1739131090518,0.53298,2626.3,2626.2,0.0057205]
[1739131090919,0.53304,2626.1,2625.4,3.2078]
[1739131091119,2.21604,2626.1,2625.4,3.2078]
[1739131091419,2.21603,2626.1,2625.4,3.2078]
[1739131091727,4.12094914,2626.0,2625.4,3.2078]
[1739131092118,4.12094914,2626.0,2625.4,3.2135205]
[1739131093230,3.2078,2625.9,2625.4,3.2135205]
[1739131093423,3.74087,2625.9,2625.4,3.2135205]
[1739131093727,4.0404935,2625.8,2625.4,3.2135205]
[1739131095816,3.2078,2626.2,2625.4,3.2135205]
[1739131096021,1.683,2626.3,2625.7,6.32894395]
[1739131097020,1.683,2626.3,2625.4,0.0057205]
[1739131097021,4.14121294,2626.2,2625.6,3.2078]
[1739131097225,0.53303,2626.1,2625.4,3.12686445]
[1739131097623,0.53302,2626.1,2625.4,3.12686445]
[1739131098023,4.02669375,2626.0,2625.4,3.12686445]
[1739131099527,4.55974375,2626.0,2625.4,3.12686445]
[1739131099829,4.35641175,2626.1,2625.4,3.12686445]
[1739131100133,4.35641175,2625.9,2625.4,3.12686445]
[1739131100329,0.53306,2626.0,2625.4,3.12686445]
[1739131100726,4.18118015,2625.9,2625.4,3.12686445]
[1739131101932,4.18118015,2625.9,2625.4,6.33466445]
[1739131102133,4.18118015,2625.9,2625.4,3.12686445]
[1739131102731,3.2078,2626.2,2625.8,3.2078]
[1739131103232,3.2078,2626.2,2625.7,3.12114395]
[1739131106229,4.40805133,2626.1,2625.5,3.2078]
[1739131106433,4.94108133,2626.1,2625.4,3.12686445]
[1739131106632,4.40805133,2626.1,2625.4,0.0057205]
[1739131106837,0.53305,2626.0,2625.4,0.0057205]
[1739131107835,0.53306,2626.0,2625.4,0.0057205]
[1739131108037,7.31254717,2625.9,2625.4,0.0057205]
[1739131108231,10.22654717,2625.9,2625.4,0.0057205]
[1739131108432,6.65488,2625.9,2625.4,0.0057205]
[1739131108631,4.10474717,2625.8,2625.4,0.0057205]
[1739131109033,1.683,2625.7,2625.4,0.0057205]
[1739131116444,4.22170015,2625.6,2625.4,0.0057205]
[1739131120246,0.53315,2625.5,2625.4,0.0057205]
[1739131120441,7.42950015,2625.6,2625.4,0.0057205]
[1739131120747,7.96263015,2625.6,2625.4,0.0057205]
[1739131123250,7.42950015,2625.6,2625.4,0.0057205]
[1739131123747,4.22170015,2625.6,2625.4,0.0057205]
[1739131126349,4.75484015,2625.6,2625.4,0.0057205]
[1739131130256,7.66884015,2625.6,2625.4,0.0057205]
[1739131131157,7.13570015,2625.6,2625.4,0.0057205]
[1739131131355,7.66884015,2625.6,2625.4,0.0057205]
[1739131132055,7.13570015,2625.6,2625.4,0.0057205]
[1739131133261,7.66884015,2625.6,2625.4,0.0057205]
[1739131135059,7.13570015,2625.6,2625.4,0.0057205]
[1739131135255,4.597,2625.6,2625.4,0.0057205]
[1739131135452,2.914,2625.6,2625.4,0.0057205]
[1739131135957,1.683,2625.7,2625.4,0.0057205]
[1739131137549,4.32562624,2625.6,2625.4,0.0057205]
[1739131137855,8.06655624,2625.6,2625.4,0.0057205]
[1739131138258,7.53342624,2625.6,2625.4,0.0057205]
[1739131138760,8.06655624,2625.6,2625.4,0.0057205]
[1739131139155,7.53342624,2625.6,2625.4,0.0057205]
[1739131141657,4.32562624,2625.6,2625.4,0.0057205]
[1739131142661,6.86204395,2625.8,2625.4,0.0057205]
[1739131142662,3.2078,2625.8,2625.4,0.0057205]
[1739131144661,1.682,2626.1,2625.5,3.2078]
[1739131145552,4.20682369,2626.0,2625.5,3.2078]
[1739131146865,1.682,2626.1,2625.5,3.2078]
[1739131151264,4.38058792,2626.0,2625.5,3.2078]
[1739131156163,3.65423395,2625.8,2625.4,0.0057205]
[1739131156473,0.53312,2625.7,2625.4,0.0057205]
[1739131156663,4.73985275,2625.7,2625.4,0.0057205]
[1739131160775,3.2078,2625.6,2625.4,0.0057205]
[1739131160978,1.682,2625.5,2625.4,0.0057205]
[1739131161170,5.98841375,2625.5,2625.4,0.0057205]
[1739131173587,7.52127013,2625.5,2625.4,0.0057205]
[1739131179191,5.98841375,2625.5,2625.4,0.0057205]
[1739131179393,1.681,2625.7,2625.4,0.0057205]
[1739131179688,1.681,2625.7,2625.5,1.53285638]
[1739131180992,3.21385638,2625.7,2625.4,0.0057205]
[1739131181294,1.53285638,2625.5,2625.4,0.0057205]
[1739131181684,3.2078,2625.6,2625.4,0.0057205]
[1739131182091,4.06315746,2625.5,2625.4,0.0057205]
[1739131188094,5.63909567,2625.7,2625.4,0.0057205]
[1739131188296,4.15369616,2625.6,2625.4,0.0057205]
[1739131189597,7.06769616,2625.6,2625.4,0.0057205]
[1739131195397,4.15369616,2625.6,2625.4,0.0057205]
[1739131196799,1.681,2625.7,2625.4,0.0057205]
[1739131200304,4.31738052,2625.6,2625.4,0.0057205]
[1739131202494,0.5332,2625.3,2624.8,3.2078]
[1739131202699,3.2078,2625.2,2624.5,3.2078]
[1739131202903,1.68,2625.1,2624.5,3.2078]
[1739131203302,4.10085896,2625.0,2624.5,3.2078]
[1739131203608,1.53356539,2624.9,2624.5,3.2078]
[1739131203807,1.53356539,2624.9,2624.5,3.2135205]
[1739131204509,1.53356539,2624.7,2624.5,3.2135205]
[1739131204706,4.03080574,2624.8,2624.5,3.2135205]
[1739131204900,4.03080574,2624.9,2624.7,3.06713078]
[1739131205102,3.2078,2626.5,2624.9,1.33317]
[1739131205298,1.53356539,2626.6,2626.3,3.2078]
[1739131205497,3.2078,2626.4,2625.5,3.2078]
[1739131205700,3.2078,2626.4,2626.0,3.42124317]
[1739131205894,3.2078,2626.4,2625.5,3.2078]
[1739131206101,3.2078,2626.4,2625.7,3.42124317]
[1739131206298,0.0057205,2626.2,2625.9,3.2078]
[1739131206898,0.0057205,2626.2,2625.7,0.0057205]
[1739131207098,8.96292963,2626.1,2625.7,0.0057205]
[1739131210907,0.0057205,2626.2,2625.7,6.63476367]
[1739131211206,0.0057205,2626.2,2626.0,6.62904317]
[1739131212010,0.0057205,2626.2,2626.0,3.2078]
[1739131213107,0.0057205,2626.2,2625.7,3.42696367]
[1739131213313,0.0057205,2626.2,2625.7,6.63476367]
[1739131215510,0.0057205,2626.2,2625.7,3.2135205]
[1739131215812,4.39310807,2626.1,2625.7,3.2135205]
[1739131220403,1.68,2626.1,2625.7,6.63476367]
[1739131220609,0.0057205,2626.2,2626.0,3.2078]
[1739131222809,4.14933687,2626.1,2625.7,3.2135205]
[1739131224021,4.8935205,2626.2,2625.7,6.63476367]
[1739131224417,1.6857205,2626.2,2625.7,6.63476367]
[1739131227119,0.0057205,2626.2,2625.7,6.63476367]
[1739131227921,0.0057205,2626.2,2626.0,3.2078]
[1739131229219,0.0057205,2626.2,2625.7,6.63476367]
[1739131229420,0.0057205,2626.2,2625.7,3.42696367]
[1739131230625,5.64637004,2626.1,2625.7,0.0057205]
[1739131230823,8.85417004,2626.1,2625.7,0.0057205]
[1739131234518,9.38721004,2626.1,2625.7,0.0057205]
[1739131234923,8.85417004,2626.1,2625.7,0.0057205]
[1739131235322,9.38721004,2626.1,2625.7,0.0057205]
[1739131235530,8.85417004,2626.1,2625.7,0.0057205]
[1739131237531,3.42124317,2626.0,2625.7,0.0057205]
[1739131237825,3.2078,2625.8,2625.7,0.0057205]
[1739131238030,3.74089,2625.8,2624.8,3.42124317]
[1739131238233,3.42124317,2625.7,2624.8,3.42124317]
[1739131238625,4.38075381,2625.6,2624.8,3.42124317]
[1739131238821,1.68,2625.5,2624.8,3.42124317]
[1739131239332,4.8878,2625.5,2624.9,0.0057205]
[1739131239532,3.95441317,2625.4,2624.9,0.0057205]
[1739131239729,8.24955343,2625.4,2624.9,0.0057205]
[1739131239938,3.2078,2625.2,2624.9,0.0057205]
[1739131242231,7.82021521,2625.1,2624.9,0.0057205]
[1739131244035,0.53325,2625.0,2624.9,0.0057205]
[1739131244230,0.59705704,2625.0,2624.1,3.2078]
[1739131244533,3.42124317,2624.8,2624.1,3.2078]
[1739131244935,4.33647234,2624.7,2624.1,3.2078]
[1739131245336,4.34219284,2624.7,2624.1,3.2135205]
[1739131250540,4.87551284,2624.7,2624.1,3.2135205]
[1739131250741,3.2078,2624.6,2624.1,3.2135205]
[1739131251234,3.98185113,2624.5,2624.1,3.2135205]
[1739131251637,7.4030943,2624.5,2624.1,0.0057205]
[1739131255140,7.9364543,2624.5,2624.1,0.0057205]
[1739131255638,3.2078,2624.3,2624.1,0.0057205]
[1739131255845,1.68,2624.2,2624.1,0.0057205]
[1739131256045,5.87250628,2624.2,2624.1,0.0057205]
[1739131257340,1.68,2624.2,2624.1,0.0057205]
[1739131257642,1.68,2624.4,2624.1,0.0057205]
[1739131259441,4.00995803,2624.3,2624.1,0.0057205]
[1739131262846,4.8878,2624.6,2624.1,0.0057205]
[1739131263743,0.53338,2624.4,2624.1,0.0057205]
[1739131264236,6.62904317,2624.2,2624.1,0.0057205]
[1739131264637,10.59746948,2624.2,2624.1,0.0057205]
[1739131265439,11.19466047,2624.2,2623.6,3.2078]
[1739131265644,3.42124317,2623.9,2623.6,3.2078]
[1739131265846,1.68,2623.8,2623.6,3.2078]
[1739131266844,3.42124317,2624.2,2623.6,3.2078]
[1739131267048,1.68,2624.1,2623.6,3.2078]
[1739131267242,5.83369807,2624.1,2623.6,3.2078]
[1739131267442,6.62904317,2624.5,2623.9,3.2078]
[1739131268445,6.62904317,2624.5,2623.7,3.42124317]
[1739131269746,4.03930631,2624.4,2623.6,3.2078]
[1739131269941,3.42124317,2624.2,2623.6,3.2078]
[1739131270141,3.42124317,2624.2,2623.4,3.42505681]
[1739131270341,3.97853905,2624.1,2623.4,3.42505681]
[1739131270546,1.68,2624.0,2623.4,3.42505681]
[1739131271149,3.97853905,2623.9,2623.4,3.42505681]
[1739131271946,3.97853905,2623.9,2623.4,0.00381364]
[1739131272746,1.68,2624.0,2623.5,3.2078]
[1739131272947,1.68,2624.0,2623.8,3.2078]
[1739131273141,1.68,2624.0,2623.5,3.2078]
[1739131274748,1.681,2624.1,2623.8,3.2078]
[1739131274946,4.465,2624.3,2623.8,3.2078]
[1739131275153,0.0057205,2624.7,2624.1,3.2078]
[1739131275350,0.0057205,2624.7,2624.5,3.2078]
[1739131275551,0.0057205,2624.7,2624.6,3.42124317]
[1739131276456,3.42124317,2625.7,2624.6,9.42124317]
[1739131276651,3.42124317,2626.0,2625.1,3.2078]
[1739131276851,1.681,2625.9,2625.4,3.2078]
[1739131277057,5.77969608,2625.9,2625.4,3.2078]
[1739131277659,5.78541658,2625.9,2625.4,3.2135205]
[1739131278353,4.10441658,2625.9,2625.4,3.2135205]
[1739131278558,0.0057205,2625.9,2625.4,3.2135205]
[1739131281559,0.0057205,2625.9,2625.7,3.2078]
[1739131282355,0.0057205,2625.9,2625.4,0.0057205]
[1739131282356,0.0057205,2625.9,2625.4,3.2135205]
[1739131283356,0.0057205,2625.9,2625.7,3.2078]
[1739131286859,1.68,2626.8,2625.7,9.2078]
[1739131287065,1.68,2626.8,2626.2,3.2078]
[1739131287263,5.97098734,2626.8,2626.2,3.2078]
[1739131288163,5.97670784,2626.8,2626.2,3.2078]
[1739131288763,3.42124317,2626.6,2625.9,3.2078]
[1739131288959,6.62904317,2626.6,2625.9,3.2078]
[1739131289161,3.42124317,2626.3,2625.9,3.2078]
[1739131289363,1.68,2626.2,2625.9,3.2078]
[1739131289671,5.71952934,2626.2,2625.9,3.2078]
[1739131290557,2.914,2626.4,2625.9,3.2078]
[1739131291661,2.914,2626.4,2626.2,3.2078]
[1739131293578,3.42124317,2626.6,2626.2,3.2078]
[1739131293968,1.679,2626.7,2626.2,3.2078]
[1739131294271,5.7608346,2626.7,2626.2,3.2078]
[1739131294769,4.0818346,2626.7,2626.2,3.2078]
[1739131295576,0.0057205,2626.8,2626.5,3.2078]
[1739131296772,0.0057205,2626.8,2626.7,3.42124317]
[1739131298272,0.0057205,2626.8,2626.5,3.2078]
[1739131299374,0.0057205,2626.8,2626.7,3.42124317]
[1739131300770,0.0057205,2626.8,2626.7,9.42124317]
[1739131301973,0.0057205,2626.8,2626.7,3.42124317]
[1739131302173,0.0057205,2626.8,2626.5,3.2078]
[1739131306182,0.0057205,2626.8,2626.7,3.42124317]
[1739131306878,0.0057205,2626.8,2626.7,9.42124317]
[1739131308080,0.0057205,2626.8,2626.7,3.42124317]
[1739131312380,0.0057205,2626.8,2626.5,3.2078]
[1739131318276,0.0057205,2626.8,2626.7,3.42124317]
[1739131319785,0.0057205,2626.8,2626.5,3.2078]
[1739131326589,4.8898,2627.6,2626.7,3.42124317]
[1739131326788,4.8898,2627.6,2627.0,3.2078]
[1739131327191,6.62904317,2628.1,2627.3,3.2078]
[1739131327484,0.06391048,2628.0,2627.3,3.2078]
[1739131327689,4.27890611,2628.0,2627.4,0.00570928]
[1739131328605,4.27890611,2628.0,2627.6,6.62904317]
[1739131328899,0.00570928,2628.0,2627.9,3.2078]
[1739131331201,0.00570928,2628.0,2627.5,3.2078]
[1739131331799,0.00570928,2628.0,2627.6,3.42124317]
[1739131332003,0.00570928,2628.0,2627.8,3.2078]
[1739131335598,0.00570928,2628.0,2627.4,3.21350928]
[1739131336402,1.684,2627.9,2627.4,3.21350928]
[1739131336800,1.684,2627.9,2627.4,0.00570928]
[1739131336997,7.57414099,2627.8,2627.4,0.00570928]
[1739131337198,3.2078,2627.7,2627.4,0.00570928]
[1739131337801,4.338849,2627.6,2627.4,0.00570928]
[1739131338196,3.42124317,2627.5,2627.4,0.00570928]
[1739131338499,3.2078,2627.7,2627.4,0.00570928]
[1739131338700,4.24045301,2627.5,2627.4,0.00570928]
[1739131338903,4.24045301,2627.6,2627.4,0.00570928]
[1739131339408,4.00766969,2627.6,2627.4,0.00570928]
[1739131340797,3.42124317,2627.5,2627.4,0.00570928]
[1739131341204,7.39010381,2627.5,2627.4,0.00570928]
[1739131342198,3.96886064,2627.5,2627.4,0.00570928]
[1739131342604,9.42124317,2627.5,2627.4,0.00570928]
[1739131342906,14.41432783,2627.5,2627.4,0.00570928]
[1739131343509,13.88158783,2627.5,2627.4,0.00570928]
[1739131343706,14.41432783,2627.5,2627.4,0.00570928]
[1739131344503,13.88158783,2627.5,2626.6,3.2078]
[1739131344812,3.2078,2626.9,2626.3,3.2078]
[1739131345013,1.683,2626.8,2626.3,3.2078]
[1739131345310,5.91625516,2626.8,2626.3,3.2078]
[1739131345707,5.91625516,2626.8,2626.0,3.2078]
[1739131345905,9.33749833,2626.8,2626.3,0.00570928]
[1739131346108,0.00570928,2626.7,2626.3,0.00570928]
[1739131346304,0.00570928,2626.7,2626.3,3.21350928]
[1739131347606,0.00570928,2626.7,2626.3,0.00570928]
[1739131349908,0.00570928,2626.7,2626.3,3.21350928]
[1739131351709,0.00570928,2626.7,2626.4,3.42124317]
[1739131354620,0.00570928,2626.7,2626.6,3.2078]
[1739131355720,0.37681002,2626.7,2626.6,3.2078]
[1739131356020,0.37681002,2626.7,2626.6,9.2078]
[1739131356913,1.682,2627.8,2627.0,3.42124317]
[1739131357115,1.682,2627.8,2627.3,3.2078]
[1739131357313,1.682,2627.8,2627.3,6.62904317]
[1739131358010,1.68770928,2627.8,2627.3,6.62904317]
[1739131359510,1.68770928,2627.8,2627.6,3.2078]
[1739131359511,0.00570928,2627.8,2627.6,3.2078]
[1739131359715,0.37102627,2627.7,2627.6,3.2078]
[1739131360322,0.37102627,2627.7,2627.6,6.62904317]
[1739131365936,0.37102627,2627.7,2627.6,3.2078]
[1739131368028,0.37102627,2627.7,2627.6,6.62904317]
[1739131372536,0.35959649,2627.7,2627.6,7.16176317]
[1739131372736,0.35959649,2627.7,2627.6,6.62904317]
[1739131373237,1.678,2628.5,2627.6,6.62904317]
[1739131373437,1.678,2628.5,2628.1,3.2078]
[1739131373838,1.678,2628.7,2628.1,3.2078]
[1739131374231,5.98517636,2628.7,2628.1,3.2078]
[1739131374536,5.99088564,2628.7,2628.1,3.21350928]
[1739131375537,1.68370928,2628.7,2628.1,3.21350928]
[1739131377040,0.00570928,2628.7,2628.1,3.21350928]
[1739131380744,0.00570928,2628.7,2628.1,0.00570928]
[1739131380745,3.2078,2628.4,2628.1,0.00570928]
[1739131381634,3.99950496,2628.3,2628.1,0.00570928]
[1739131382941,1.7420004,2628.2,2627.4,3.2078]
[1739131383238,1.7420004,2628.2,2627.0,6.62904317]
[1739131383239,6.62904317,2628.0,2627.0,6.62904317]
[1739131383439,6.62904317,2628.0,2627.5,3.2078]
[1739131383639,4.02083293,2627.9,2627.5,3.2078]
[1739131383939,1.678,2628.2,2627.5,3.2078]
[1739131384236,3.42124317,2628.6,2627.6,3.42124317]
[1739131384441,1.678,2628.4,2627.9,3.2078]
[1739131385336,1.678,2628.4,2627.9,6.62904317]
[1739131386037,3.21350928,2628.7,2627.9,6.62904317]
[1739131386235,3.21350928,2628.7,2628.2,3.2078]
[1739131387233,3.21350928,2628.7,2628.2,6.62904317]
[1739131390843,0.00570928,2628.7,2628.6,3.2078]
[1739131391141,13.0,2629.0,2628.6,3.2078]
[1739131391444,13.0,2629.0,2628.9,6.62904317]
[1739131393536,13.0,2629.0,2628.9,3.2078]
[1739131397443,13.0,2629.0,2628.9,6.62904317]
[1739131398941,13.0,2629.0,2628.9,12.62904317]
[1739131399145,12.99429072,2629.0,2628.9,12.62904317]
[1739131399748,12.99429072,2629.0,2628.9,13.16150317]
[1739131399946,12.21822884,2629.0,2628.9,13.16150317]
[1739131400647,12.21822884,2629.0,2628.9,16.58274634]
[1739131400842,1.678,2630.3,2628.9,16.05028634]
[1739131401045,1.678,2630.3,2629.8,3.2078]
[1739131402250,1.68370556,2630.3,2629.8,3.21350928]
[1739131403957,1.68370556,2630.3,2629.8,0.00570928]
[1739131404451,0.53223,2630.1,2629.8,0.00570928]
[1739131404650,3.42124317,2630.1,2629.8,0.00570928]
[1739131404953,4.10571708,2630.0,2629.8,0.00570928]
[1739131405154,4.04167749,2630.0,2629.8,0.00570928]
[1739131409454,3.80409121,2629.9,2629.8,0.00570928]
[1739131409949,8.13723702,2629.9,2629.8,0.00570928]
[1739131410253,14.13723702,2629.9,2629.8,0.00570928]
[1739131410449,0.53227,2629.8,2629.0,3.2078]
[1739131410651,0.53234,2629.5,2629.0,3.2078]
[1739131410851,0.53235,2629.5,2629.0,3.2078]
[1739131411160,0.06403836,2629.4,2629.0,3.2078]
[1739131411351,3.42124317,2629.3,2628.7,3.2078]
[1739131411751,3.42124317,2629.3,2628.9,0.00570928]
[1739131412158,6.62904317,2629.3,2628.9,0.00570928]
[1739131417661,3.2078,2629.3,2628.9,0.00570928]
[1739131418859,1.677,2629.5,2628.9,0.00570928]
[1739131419165,3.96924474,2629.4,2628.9,0.00570928]
[1739131422863,0.53244,2629.0,2628.9,0.00570928]
[1739131423071,3.42124317,2629.0,2628.9,0.00570928]
[1739131423262,7.586976,2629.0,2628.9,0.00570928]
[1739131423563,8.18347296,2629.0,2628.9,0.00570928]
[1739131423757,7.72157433,2629.0,2628.1,3.2078]
[1739131423965,5.48131696,2628.9,2628.1,3.2078]
[1739131424163,5.41726,2628.9,2628.1,3.2078]
[1739131424669,0.07054137,2628.5,2628.1,3.2078]
[1739131425965,0.07054137,2628.3,2628.1,3.2078]
[1739131426763,0.00570928,2628.6,2628.1,3.2078]
[1739131427061,0.00570928,2628.6,2628.4,3.2078]
[1739131429758,0.00570928,2628.6,2628.0,0.31407574]
[1739131429759,0.00570928,2628.6,2628.1,3.2078]
[1739131433677,0.00570928,2628.6,2628.4,3.2078]
[1739131439766,0.00570928,2628.6,2628.4,3.2078]
[1739131447670,0.00570928,2628.6,2628.1,3.2078]
[1739131448472,3.42124317,2628.4,2628.0,0.00570928]
[1739131448668,3.2078,2628.3,2628.0,0.00570928]
[1739131448873,7.42860827,2628.3,2628.0,0.00570928]
[1739131449074,3.42124317,2628.1,2628.0,0.00570928]
[1739131449268,5.09824317,2628.1,2628.0,0.00570928]
[1739131449574,15.38307303,2628.1,2627.1,3.2078]
[1739131449877,3.42124317,2627.7,2627.1,3.2078]
[1739131450565,3.42124317,2627.7,2627.1,3.21350928]
[1739131452475,4.29222572,2627.6,2627.1,3.21350928]
[1739131452670,1.677,2627.5,2627.1,3.21350928]
[1739131453073,4.32271513,2627.4,2627.1,3.21350928]
[1739131453468,1.677,2627.6,2627.1,3.21350928]
[1739131459978,0.53275,2627.5,2627.1,3.21350928]
[1739131460275,1.677,2627.6,2627.1,3.21350928]
[1739131469188,2.20973,2627.6,2627.1,3.21350928]
[1739131469389,1.677,2627.6,2627.1,3.21350928]
[1739131470987,3.2078,2627.9,2627.4,3.2078]
[1739131471484,1.678,2628.0,2627.4,3.2078]
[1739131471883,5.09924317,2628.0,2627.4,3.2078]
[1739131472083,5.09924317,2628.0,2627.1,0.00570928]
[1739131472084,7.35438101,2627.9,2627.1,3.21350928]
[1739131472289,7.88705101,2627.9,2627.1,3.21350928]
[1739131473396,7.35438101,2627.9,2627.1,3.21350928]
[1739131473581,3.2078,2627.9,2627.1,3.21350928]
[1739131474385,3.2078,2627.9,2627.3,3.42124317]
[1739131474584,1.678,2628.2,2627.7,3.2078]
[1739131475388,1.678,2628.2,2627.4,3.2078]
[1739131477498,1.678,2628.2,2627.7,3.2078]
[1739131478700,6.62904317,2628.0,2627.4,3.2078]
[1739131478897,3.42124317,2628.0,2627.4,3.2078]
[1739131479195,6.62904317,2628.0,2627.4,3.2078]
[1739131479390,6.62904317,2628.0,2627.1,3.21350928]
[1739131479992,0.53267,2627.9,2627.1,3.21350928]
[1739131482192,3.2078,2627.9,2627.1,3.21350928]
[1739131482697,3.74047,2627.9,2627.1,3.21350928]
[1739131483291,3.2078,2627.9,2627.1,3.21350928]
[1739131483489,3.42124317,2627.7,2627.1,3.21350928]
[1739131483800,1.678,2627.6,2627.1,3.21350928]
[1739131483994,5.72116505,2627.6,2627.1,3.21350928]
[1739131484291,8.92896505,2627.6,2627.1,3.21350928]
[1739131484699,3.42124317,2627.4,2627.1,3.21350928]
[1739131485791,3.42124317,2627.4,2627.1,0.00570928]
[1739131489591,0.05177029,2627.3,2627.1,0.00570928]
[1739131490601,0.05177029,2627.2,2627.1,0.00570928]
[1739131494388,0.03464245,2627.2,2627.1,6.00570928]
[1739131495093,0.03464245,2627.2,2627.1,6.53852928]
[1739131495699,0.03464245,2627.2,2627.1,6.00570928]
[1739131496803,5.09924317,2628.3,2627.1,6.00570928]
[1739131497101,5.09924317,2628.3,2627.8,3.2078]
[1739131497502,3.42124317,2628.3,2627.8,3.2078]
[1739131498098,5.09924317,2628.3,2627.8,3.2078]
[1739131501104,5.09924317,2628.3,2627.5,3.2078]
[1739131503207,2.914,2628.5,2627.2,0.3069221]
[1739131503208,1.677,2628.4,2627.8,3.2078]
[1739131504201,2.914,2628.5,2628.2,3.2078]
[1739131507409,3.42695245,2628.6,2627.8,3.2078]
[1739131509303,3.42124317,2628.3,2627.8,3.2078]
[1739131509606,1.677,2628.2,2627.8,3.2078]
[1739131510806,0.0517703,2628.0,2627.8,3.2078]
[1739131511605,6.68081347,2628.0,2627.1,3.21350928]
[1739131511803,3.42124317,2627.7,2627.1,0.00570928]
[1739131512104,0.0517703,2627.6,2627.1,3.21350928]
[1739131512505,0.0517703,2627.6,2627.1,0.00570928]
[1739131513107,0.0517703,2627.4,2627.1,3.21350928]
[1739131513911,0.0517703,2627.3,2627.1,3.21350928]
[1739131515108,0.0517703,2627.2,2627.1,3.21350928]
[1739131515610,0.0517703,2627.2,2627.1,9.21350928]
[1739131516004,3.2078,2628.3,2627.1,9.21350928]
[1739131516199,3.42695245,2628.6,2628.1,3.2078]
[1739131516200,0.00570928,2628.6,2628.1,3.2078]
[1739131521217,0.00570928,2628.6,2628.4,3.2078]
[1739131524829,0.00570928,2628.6,2628.1,3.2078]
[1739131529832,0.00570928,2628.6,2628.4,3.2078]
[1739131530033,0.00570928,2628.6,2628.5,3.42124317]
[1739131534136,0.00570928,2628.6,2628.4,3.2078]
[1739131546838,0.00570928,2628.6,2628.2,3.2078]
[1739131548838,0.00570928,2628.6,2627.6,1.676]
[1739131548839,7.16728245,2628.6,2628.0,3.2078]
[1739131549046,7.16728245,2628.6,2627.9,3.2078]
[1739131549347,0.06424534,2628.5,2627.6,6.62904317]